[Event "Istanbul Open 2018"]
[Site "Istanbul"]
[Date "2018.09.04"]
[Round "5"]
[White "Acarbay, Aydin"]
[Black "Sarikavak, Serdar Ýhsan"]
[Result "0-1"]
[ECO "E60"]
[WhiteElo "1894"]
[BlackElo "1798"]
[Annotator "NA RC"]
[PlyCount "100"]
[EventDate "2018.09.02"]
[EventType "swiss"]
[EventCountry "TUR"]
[SourceTitle "playchess.com"]
[Source "ChessBase"]
[SourceQuality "1"]
[TimeControl "5400+30"]

1. d4 {[%emt 0:00:30]} Nf6 {[%emt 0:00:30]} 2. Nf3 {[%emt 0:00:00]} g6 {[%emt 0:00:00]} 3. c4 {[%emt 0:00:00]} Bg7 {[%emt 0:00:00]} 4. g3 {[%emt 0:01:30]} O-O {[%emt 0:00:00]} 5. Bg2 {[%emt 0:00:00]} d6 {[%emt 0:00:00]} 6. O-O {[%emt 0:00:00]} Nc6 {[%emt 0:00:30]} 7. h3 {[%emt 0:06:30]} e5 {[%emt 0:02:30] E60: King's Indian: Unusual lines and Fianchetto Variation without Nc3} 8. dxe5 {[%emt 0:14:30]} (8. Nc3 exd4 9. Nxd4 Nxd4 10. Qxd4 Re8 11. Qd3 Nd7 12. b3 Nc5 13. Qd2 Bf5 14. Bb2 Ne4 15. Bxe4 Bxe4 16. f3 Bc6 17. e4 Qd7 18. g4 {½-½ (64) Adams,M (2724)-Jones,G (2653) Bunratty 2012}) 8... dxe5 {[%emt 0:02:30]} 9. Be3 $146 {[%emt 0:02:30]} ({Predecessor:} 9. Nc3 Be6 10. b3 h6 11. Be3 Qxd1 12. Rfxd1 Rfd8 13. Ne1 Ne8 14. Rac1 a6 15. Nd3 {1-0 (45) Cesal,J (2235)-Havlik,J (2282) Czechia 2008}) 9... Be6 {[%emt 0:01:30]} 10. Na3 {[%emt 0:02:30]} Qe7 {[%emt 0:06:30]} 11. Qb3 {[%emt 0:07:30]} a6 {[%emt 0:04:30]} 12. Rfd1 {[%emt 0:02:30]} h6 {[%emt 0:22:30]} 13. Qa4 {[%emt 0:14:30]} Nd7 {[%emt 0:10:30]} 14. Qc2 {[%emt 0:11:30]} f5 {[%emt 0:10:30]} 15. Nh4 {[%emt 0:12:30]} Kh7 {[%emt 0:05:30]} 16. Bd5 {[%emt 0:02:56]} e4 {[%emt 0:02:30]} 17. Ng2 {[%emt 0:02:58]} g5 {[%emt 0:02:30]} 18. Nb1 {[%emt 0:03:08]} ({White should try} 18. h4 $15) 18... Nde5 {[%emt 0:05:30]} 19. Nd2 {[%emt 0:00:22]} Rad8 {[%emt 0:02:38]} 20. Nb3 {[%emt 0:04:34]} b6 {[%emt 0:09:59]} (20... Nb4 $17 21. Bc5 Nxc2 22. Bxe7 Nxa1 23. Rxa1 Bc8 24. Bxd8 Rxd8) 21. a3 {[%emt 0:00:35]} Qf7 {[%emt 0:00:45]} 22. h4 {[%emt 0:04:31]} Bf6 {[%emt 0:01:21]} 23. hxg5 {[%emt 0:00:18]} hxg5 {[%emt 0:00:16]} 24. Qd2 {[%emt 0:01:11]} Nxc4 {[%emt 0:01:22]} 25. Bxe6 {[%emt 0:00:18]} Qxe6 {[%emt 0:00:53]} 26. Qc2 {[%emt 0:00:58]} Nxe3 {[%emt 0:02:27]} 27. Nxe3 {[%emt 0:00:23]} Be5 {[%emt 0:01:19]} 28. Rac1 {[%emt 0:00:43]} Rxd1+ {[%emt 0:01:25]} 29. Rxd1 {[%emt 0:00:09]} Kg7 {[%emt 0:02:09]} 30. Qc4 {[%emt 0:03:02]} Qxc4 {[%emt 0:00:59]} 31. Nxc4 {[%emt 0:00:01]} Bf6 {[%emt 0:00:24]} 32. a4 {[%emt 0:00:53]} b5 {[%emt 0:01:11]} ({Better is} 32... Kg6 $17 33. g4 fxg4) 33. axb5 {[%emt 0:00:06]} axb5 {[%emt 0:00:02]} 34. Na3 {[%emt 0:02:26]} Bxb2 {[%emt 0:00:59]} (34... b4 $5 {[%cal Rb4a3]} 35. Nc4 Rd8 36. Rxd8 Nxd8 $17) 35. Nxb5 {[%emt 0:00:04]} Rb8 {[%emt 0:00:40]} 36. Rd5 {[%emt 0:00:32]} Ne7 {[%emt 0:00:30]} (36... Ne5 $5 {[%cal Rc7c6]} 37. N3d4 Bxd4 38. Nxd4 Kf6 $17) 37. Rc5 $1 {[%emt 0:00:24]} Kf6 {[%emt 0:00:36]} 38. Na5 {[%emt 0:00:57]} c6 {[%emt 0:00:31]} (38... Be5 $15 39. Nxc7 Rc8 40. Nd5+ Ke6 41. Rxc8 Nxc8) 39. Na7 $2 {[%emt 0:00:55]} (39. Nxc6 $11 {und Weiss ist OK.} Rc8 40. Nba7) 39... Bd4 {[%emt 0:00:25]} 40. Rxc6+ {[%emt 0:00:32]} Nxc6 {[%emt 0:00:06]} 41. N7xc6 {[%emt 0:00:13]} Rb1+ {[%emt 0:00:16]} 42. Kg2 {[%emt 0:00:02]} Bb6 {[%emt 0:00:43]} 43. Nc4 $1 $11 {[%emt 0:00:12]} Bc7 {[%emt 0:00:44]} (43... Bc5 44. N6a5) 44. Ne3 {[%emt 0:00:15]} Bb6 $2 {[%emt 0:00:36]} (44... Bd6 $19 45. Nd5+ Ke6) 45. Nd5+ $2 {[%emt 0:01:42]} Ke6 {[%emt 0:00:28]} 46. Ne3 {[%emt 0:00:41]} Rc1 $19 {[%emt 0:00:35]} 47. Nb4 {[%emt 0:00:14]} Bxe3 {[%emt 0:00:30]} 48. fxe3 {[%emt 0:00:01]} Kd6 {[%emt 0:00:14]} 49. Kf2 {[%emt 0:00:59]} Rc4 {[%emt 0:00:23]} 50. Na2 {[%emt 0:00:23]} Ke5 {[%emt 0:00:58]} 0-1

[Event "Istanbul Open 2018"]
[Site "Istanbul"]
[Date "2018.09.04"]
[Round "5"]
[White "Ozveren, Ali Bulent"]
[Black "Akin, Yagiz Cinar"]
[Result "1-0"]
[ECO "A41"]
[WhiteElo "1849"]
[BlackElo "1963"]
[Annotator "NA RC"]
[PlyCount "119"]
[EventDate "2018.09.02"]
[EventType "swiss"]
[EventCountry "TUR"]
[SourceTitle "playchess.com"]
[Source "ChessBase"]
[SourceQuality "1"]
[TimeControl "5400+30"]

1. Nf3 {[%emt 0:10:30]} g6 {[%emt 0:00:30]} 2. g3 {[%emt 0:00:00]} Bg7 {[%emt 0:00:00]} 3. Bg2 {[%emt 0:01:00]} d6 {[%emt 0:00:00]} 4. O-O {[%emt 0:00:00]} Nd7 {[%emt 0:00:00]} 5. e4 {[%emt 0:00:00]} e5 {[%emt 0:00:00]} 6. d4 {[%emt 0:00:30]} Ne7 {[%emt 0:00:30]} 7. dxe5 {[%emt 0:16:30] A41: 1 d4 d6: Tartakower System and Modern Defence} (7. c4 O-O 8. Nc3 h6 9. Re1 Nc6 10. Be3 exd4 11. Nxd4 Nde5 12. Nxc6 bxc6 13. c5 Nc4 14. Qc1 Nxe3 15. Qxe3 Rb8 16. Rab1 Be6 17. cxd6 cxd6 18. Qxa7 {0-1 (43) Kempinski,R (2599)-Istratescu,A (2654) Warsaw 2012}) 7... dxe5 {[%emt 0:00:30] LiveBook: 7 Games} 8. Nc3 {[%emt 0:07:30]} O-O {[%emt 0:01:30]} 9. Bg5 {[%emt 0:03:30]} h6 {[%emt 0:01:30]} 10. Be3 {[%emt 0:00:00]} Nc6 $146 {[%emt 0:11:30]} ({Predecessor:} 10... Kh7 11. Qd3 c6 12. Rfd1 Qc7 13. Qc4 Nb6 {0-1 (53) Brumen,D (2351)-Dobosz,H (2389) Austria 2015}) 11. Qd2 {[%emt 0:03:00]} Kh7 {[%emt 0:00:00]} 12. Rad1 {[%emt 0:06:30]} Nb6 {[%emt 0:06:00]} 13. Qxd8 {[%emt 0:09:30]} Nxd8 {[%emt 0:03:30]} 14. Nb5 {[%emt 0:10:30]} Ne6 {[%emt 0:02:30]} 15. b3 {[%emt 0:01:30]} f5 {[%emt 0:03:30]} 16. exf5 {[%emt 0:05:30]} gxf5 {[%emt 0:00:30]} 17. Nh4 {[%emt 0:00:30]} f4 {[%emt 0:03:30]} 18. Bxb6 {[%emt 0:03:34]} axb6 {[%emt 0:02:30]} 19. Be4+ {[%emt 0:00:47]} Kg8 {[%emt 0:00:30]} 20. a4 {[%emt 0:02:11]} c6 {[%emt 0:01:30]} 21. Nd6 {[%emt 0:00:15]} Ng5 {[%emt 0:01:30]} 22. Nxc8 {[%emt 0:05:29]} Raxc8 {[%emt 0:00:30]} 23. f3 {[%emt 0:04:03]} Rcd8 {[%emt 0:07:30]} 24. Bd3 {[%emt 0:02:48]} fxg3 {[%emt 0:10:30]} (24... Kf7 $14) 25. hxg3 {[%emt 0:00:04]} Rfe8 {[%emt 0:01:30]} 26. Kg2 {[%emt 0:00:35]} Bf6 {[%emt 0:05:30]} 27. Nf5 {[%emt 0:00:35]} h5 {[%emt 0:02:30]} 28. Rh1 {[%emt 0:00:48]} Kf8 {[%emt 0:01:30]} 29. Rxh5 {[%emt 0:00:23]} Nxf3 {[%emt 0:01:30]} 30. Rh6 {[%emt 0:03:40]} Bg7 {[%emt 0:03:30]} 31. Nxg7 {[%emt 0:01:02]} Kxg7 {[%emt 0:00:30]} 32. Rh7+ {[%emt 0:00:33]} Kf6 {[%emt 0:02:30]} 33. Rf1 {[%emt 0:00:21]} e4 {[%emt 0:00:30]} 34. Bxe4 {[%emt 0:00:13]} Rxe4 {[%emt 0:00:30]} 35. Rxf3+ {[%emt 0:00:16]} Kg5 {[%emt 0:01:30]} 36. Rg7+ {[%emt 0:01:37]} Kh5 {[%emt 0:00:30]} 37. Rxb7 {[%emt 0:01:15]} Rg8 {[%emt 0:01:30]} 38. Rh7+ {[%emt 0:00:49]} Kg6 {[%emt 0:00:30]} 39. Rb7 {[%emt 0:00:32]} Kh5 {[%emt 0:00:30]} 40. Rxb6 {[%emt 0:00:03]} Re2+ {[%emt 0:01:30]} 41. Rf2 {[%emt 0:00:09]} Re3 {[%emt 0:00:00]} 42. Rf5+ {[%emt 0:00:58]} Kg4 {[%emt 0:01:00]} 43. Rf4+ {[%emt 0:00:05]} Kh5 {[%emt 0:00:30]} 44. Rh4+ {[%emt 0:00:11]} Kg5 {[%emt 0:00:00]} 45. Rxc6 {[%emt 0:00:04]} Rf8 {[%emt 0:02:00]} 46. Rc5+ {[%emt 0:00:23]} Kg6 {[%emt 0:00:30]} 47. Rg4+ {[%emt 0:00:19]} Kh6 {[%emt 0:00:00]} 48. Rd4 {[%emt 0:01:47]} Rf6 {[%emt 0:01:00]} 49. Rcd5 {[%emt 0:00:27]} Re2+ {[%emt 0:01:30]} 50. Kh3 {[%emt 0:00:05]} Rff2 {[%emt 0:00:30]} 51. Rc4 {[%emt 0:00:18]} Rf6 {[%emt 0:00:30]} 52. Rdc5 {[%emt 0:00:12]} Rff2 {[%emt 0:00:30]} 53. Kg4 {[%emt 0:00:10]} Re3 {[%emt 0:02:30]} 54. Rc6+ {[%emt 0:00:31]} Kg7 $18 {[%emt 0:00:30]} 55. Rc7+ {[%emt 0:00:07]} Kg8 {[%emt 0:00:42]} 56. Rb7 {[%emt 0:00:29]} Re8 {[%emt 0:00:18]} 57. Kh3 {[%emt 0:01:05]} Rd8 {[%emt 0:00:55]} 58. a5 {[%emt 0:00:13]} Rf6 {[%emt 0:00:15]} 59. Rg4+ {[%emt 0:00:31]} Kh8 {[%emt 0:01:57]} 60. Rb5 {[%emt 0:00:23]} 1-0

[Event "Istanbul Open 2018"]
[Site "Istanbul"]
[Date "2018.09.04"]
[Round "5"]
[White "Kelpetin, Umut Can"]
[Black "Ozsakallioglu, Akin"]
[Result "0-1"]
[ECO "B23"]
[WhiteElo "1798"]
[BlackElo "1861"]
[Annotator "NA RC"]
[PlyCount "102"]
[EventDate "2018.09.02"]
[EventType "swiss"]
[EventCountry "TUR"]
[SourceTitle "playchess.com"]
[Source "ChessBase"]
[SourceQuality "1"]
[TimeControl "5400+30"]

1. e4 {[%emt 0:01:30]} c5 {[%emt 0:00:30]} 2. Nc3 {[%emt 0:00:00]} Nc6 {[%emt 0:00:00]} 3. f4 {[%emt 0:00:00]} e6 {[%emt 0:00:00]} 4. Nf3 {[%emt 0:00:30]} g6 {[%emt 0:00:30]} 5. Bc4 {[%emt 0:06:30]} Bg7 {[%emt 0:00:30]} 6. f5 {[%emt 0:04:30]} gxf5 {[%emt 0:00:30] LiveBook: 13 Games} 7. d3 {[%emt 0:01:30]} Nge7 {[%emt 0:01:30]} 8. O-O {[%emt 0:00:30] B23: Closed Sicilian: Lines without g3} d5 {[%emt 0:03:30]} 9. exd5 {[%emt 0:04:30]} exd5 {[%emt 0:00:30]} 10. Bb3 {[%emt 0:00:30]} h6 {[%emt 0:01:30]} (10... Be6 11. Qe1 a6 12. Ng5 Nd4 13. Bf4 c4 14. dxc4 dxc4 15. Nxe6 Nxe6 16. Bxc4 {0-1 (33) Degraeve,R (2019)-Jones,G (2665) chess.com INT 2017}) 11. Qe1 $146 {[%emt 0:00:30]} ({Predecessor:} 11. Bf4 a6 12. Re1 Be6 13. a4 b6 14. Ne5 Nxe5 15. Bxe5 Bxe5 16. Rxe5 {½-½ (40) Lastovicka,J-Machacek,P Brno 1973}) 11... Be6 {[%emt 0:00:00]} 12. Qg3 {[%emt 0:05:30]} Rg8 {[%emt 0:03:00]} 13. Qf2 {[%emt 0:01:30]} b6 {[%emt 0:03:30]} 14. Re1 {[%emt 0:14:30]} a6 {[%emt 0:10:30]} 15. Nh4 {[%emt 0:18:30] [#]} Bd4 $1 {[%emt 0:18:30]} 16. Be3 {[%emt 0:00:00]} Bxe3 {[%emt 0:00:30]} 17. Qxe3 {[%emt 0:01:00]} d4 {[%emt 0:03:30]} 18. Qxh6 {[%emt 0:03:30]} dxc3 {[%emt 0:00:30]} 19. Bxe6 {[%emt 0:02:30]} Qd4+ {[%emt 0:02:30]} 20. Kh1 {[%emt 0:02:30]} Rh8 {[%emt 0:07:30]} 21. Bxf7+ {[%emt 0:02:30]} Kd8 {[%emt 0:00:00]} 22. Qe6 $2 {[%emt 0:11:22]} (22. bxc3 $17 Rxh6 23. cxd4 Rxh4 24. dxc5) 22... Rxh4 {[%emt 0:02:00]} 23. Be8 {[%emt 0:04:20]} Kc7 {[%emt 0:01:30]} 24. Qf7 $2 {[%emt 0:04:11] [#]} (24. bxc3 Qd6 25. Qxd6+ Kxd6 26. Bxc6 Nxc6 27. a4) 24... Rxh2+ {[%emt 0:06:30]} (24... Rxe8 $142 $1 25. Qxe8 Qd6) 25. Kxh2 {[%emt 0:00:27]} Qh8+ {[%emt 0:00:30]} 26. Kg1 {[%emt 0:02:01]} Qxe8 {[%emt 0:00:30]} 27. Qxe8 {[%emt 0:01:17]} Rxe8 {[%emt 0:01:30]} 28. bxc3 {[%emt 0:00:26]} Rg8 {[%emt 0:00:30]} 29. Rf1 {[%emt 0:00:58]} Kd6 {[%emt 0:01:30]} 30. Rae1 {[%emt 0:00:59]} (30. a4 $17) 30... Rg4 {[%emt 0:00:00]} 31. c4 {[%emt 0:01:03] [#]} b5 $1 {[%emt 0:01:00]} 32. cxb5 {[%emt 0:00:19]} axb5 {[%emt 0:00:00]} 33. a3 {[%emt 0:02:35]} Ra4 {[%emt 0:00:00]} 34. Rb1 {[%emt 0:00:25]} Nd4 {[%emt 0:00:30]} 35. c3 {[%emt 0:01:36]} Ne2+ {[%emt 0:00:30]} 36. Kf2 $19 {[%emt 0:01:04]} Nxc3 {[%emt 0:00:00]} 37. Rb3 {[%emt 0:00:11]} Rf4+ {[%emt 0:02:00]} 38. Ke1 {[%emt 0:02:47]} Rxf1+ {[%emt 0:00:00]} 39. Kxf1 {[%emt 0:00:31]} Ned5 {[%emt 0:00:00]} 40. Kf2 {[%emt 0:00:30]} Ke5 {[%emt 0:00:30]} 41. Ke1 {[%emt 0:00:30]} Kf4 {[%emt 0:00:30]} 42. Kf2 {[%emt 0:00:30]} b4 {[%emt 0:00:30]} 43. axb4 {[%emt 0:00:30]} cxb4 {[%emt 0:00:30]} 44. g3+ {[%emt 0:00:00]} Kg4 {[%emt 0:00:30]} 45. Kg2 {[%emt 0:00:39]} Nb5 {[%emt 0:02:30]} 46. Kf2 {[%emt 0:00:40]} Nd4 {[%emt 0:00:30]} 47. Rb1 {[%emt 0:00:26]} b3 {[%emt 0:00:30]} 48. Rb2 {[%emt 0:00:41]} Nc3 {[%emt 0:00:30]} 49. Kg2 {[%emt 0:00:30]} Na4 {[%emt 0:00:30]} 50. Rb1 {[%emt 0:00:14]} b2 {[%emt 0:00:00]} 51. Kf2 {[%emt 0:00:16]} Nb5 {[%emt 0:00:00]} 0-1

[Event "Istanbul Open 2018"]
[Site "Istanbul"]
[Date "2018.09.04"]
[Round "5"]
[White "Tinarlioglu, Emre"]
[Black "Gonullu, Muhammed Sinan"]
[Result "0-1"]
[ECO "B22"]
[WhiteElo "1796"]
[BlackElo "1816"]
[Annotator "NA RC"]
[PlyCount "88"]
[EventDate "2018.09.02"]
[EventType "swiss"]
[EventCountry "TUR"]
[SourceTitle "playchess.com"]
[Source "ChessBase"]
[SourceQuality "1"]
[TimeControl "5400+30"]

1. e4 {[%emt 0:00:30]} c5 {[%emt 0:00:30]} 2. c3 {[%emt 0:00:00]} g6 {[%emt 0:00:00]} 3. d4 {[%emt 0:00:00]} cxd4 {[%emt 0:00:00]} 4. cxd4 {[%emt 0:00:00]} d5 {[%emt 0:00:00]} 5. e5 {[%emt 0:00:00]} Bg7 {[%emt 0:00:00]} 6. Nc3 {[%emt 0:00:00]} Nc6 {[%emt 0:00:00]} 7. h3 {[%emt 0:00:00]} Nh6 {[%emt 0:01:00] B22: Sicilian: 2 c3} 8. g4 {[%emt 0:00:00]} f6 {[%emt 0:00:30]} 9. f4 {[%emt 0:00:00]} fxe5 {[%emt 0:00:00]} 10. fxe5 {[%emt 0:00:30]} a6 $146 {[%emt 0:04:00]} ({Predecessor:} 10... O-O 11. Bg2 e6 12. Nf3 Bd7 13. Be3 Rc8 14. Qd2 Nf7 15. O-O {1-0 (35) Pavasovic,D (2597)-Lie,K (2526) Dresden 2008}) 11. Bg2 {[%emt 0:00:00]} e6 {[%emt 0:02:30]} 12. Nf3 {[%emt 0:00:00]} Nf7 {[%emt 0:00:30]} 13. O-O {[%emt 0:00:30]} O-O {[%emt 0:00:00]} 14. a4 {[%emt 0:02:30]} Qb6 {[%emt 0:01:00]} 15. Kh1 {[%emt 0:00:00]} Bd7 {[%emt 0:00:30]} 16. Ne2 {[%emt 0:01:00]} Na5 {[%emt 0:01:30]} 17. Bd2 {[%emt 0:14:30]} Rac8 {[%emt 0:04:30]} 18. Bxa5 {[%emt 0:00:00]} Qxa5 {[%emt 0:00:30]} 19. Nc3 {[%emt 0:00:00]} Nd8 {[%emt 0:01:30]} 20. Rc1 {[%emt 0:08:30]} Qb4 {[%emt 0:01:30]} 21. Qd2 {[%emt 0:04:30]} Nc6 {[%emt 0:02:30]} 22. Qe3 {[%emt 0:03:30]} Na5 {[%emt 0:01:30]} 23. Ng5 {[%emt 0:06:30]} Nc4 {[%emt 0:04:30]} 24. Qg3 {[%emt 0:01:30]} Nb6 {[%emt 0:03:30]} ({Don't do} 24... Qxb2 25. Nxd5 exd5 26. Bxd5+ Kh8 27. Qd3 $19) 25. Rxf8+ {[%emt 0:02:30]} Rxf8 {[%emt 0:00:30]} 26. a5 {[%emt 0:05:30]} Qxa5 {[%emt 0:00:30]} 27. Qh4 {[%emt 0:00:30]} h6 {[%emt 0:00:30]} 28. Nf3 {[%emt 0:00:30]} Nc4 {[%emt 0:00:30]} 29. g5 {[%emt 0:07:30]} h5 {[%emt 0:01:30]} 30. Qf2 {[%emt 0:00:30]} Qb6 {[%emt 0:03:30]} 31. Nd1 {[%emt 0:00:30]} Qd8 {[%emt 0:04:30]} 32. Qc2 {[%emt 0:00:30]} Be8 {[%emt 0:04:30]} 33. b3 {[%emt 0:01:30]} Na5 {[%emt 0:01:30]} 34. Nc3 {[%emt 0:02:30]} Nc6 {[%emt 0:00:30]} 35. Na4 {[%emt 0:01:30]} Qe7 {[%emt 0:05:30]} 36. Nc5 {[%emt 0:01:30]} Rxf3 {[%emt 0:03:30]} 37. Bxf3 {[%emt 0:00:30]} Nxd4 {[%emt 0:00:30]} 38. Qg2 {[%emt 0:00:30]} Bc6 {[%emt 0:02:30]} 39. Nd3 {[%emt 0:03:30]} Nxb3 {[%emt 0:03:30]} 40. Rf1 {[%emt 0:00:30]} Nd4 {[%emt 0:00:30]} 41. Bd1 {[%emt 0:00:30]} Nf5 {[%emt 0:00:00]} 42. Kh2 $19 {[%emt 0:00:00]} (42. Qf2 $142) 42... Ne3 {[%emt 0:00:00]} 43. Qf2 {[%emt 0:01:00]} Nxf1+ {[%emt 0:00:30]} 44. Qxf1 {[%emt 0:00:00]} Qxg5 {[%emt 0:00:30]} 0-1

[Event "Istanbul Open 2018"]
[Site "Istanbul"]
[Date "2018.09.04"]
[Round "5"]
[White "Yildiz, Erhan"]
[Black "Tepeli, Huseyin"]
[Result "0-1"]
[ECO "B10"]
[WhiteElo "1777"]
[BlackElo "1529"]
[Annotator "NA RC"]
[PlyCount "56"]
[EventDate "2018.09.02"]
[EventType "swiss"]
[EventCountry "TUR"]
[SourceTitle "playchess.com"]
[Source "ChessBase"]
[SourceQuality "1"]
[TimeControl "5400+30"]

1. e4 {[%emt 0:09:30]} c6 {[%emt 0:03:30]} 2. f4 {[%emt 0:00:30]} d5 {[%emt 0:00:30]} 3. e5 {[%emt 0:00:30]} Bf5 {[%emt 0:01:30]} 4. Nf3 {[%emt 0:00:30]} e6 {[%emt 0:00:30]} 5. Be2 {[%emt 0:00:30]} Nd7 {[%emt 0:00:30]} 6. O-O {[%emt 0:00:30]} Be7 {[%emt 0:00:30]} 7. d4 {[%emt 0:00:30]} h6 {[%emt 0:02:30]} 8. Bd3 {[%emt 0:00:30]} g6 {[%emt 0:00:30]} 9. c3 {[%emt 0:00:30]} Qc7 {[%emt 0:21:30]} 10. a4 {[%emt 0:42:30]} O-O-O {[%emt 0:00:30]} 11. b4 {[%emt 0:02:30]} g5 {[%emt 0:00:30]} 12. b5 {[%emt 0:00:30]} f6 {[%emt 0:00:30]} 13. bxc6 {[%emt 0:00:30]} Qxc6 {[%emt 0:00:30]} 14. exf6 {[%emt 0:00:30]} Ngxf6 {[%emt 0:00:30]} 15. Bxf5 {[%emt 0:06:30]} exf5 {[%emt 0:00:30]} 16. fxg5 {[%emt 0:00:30]} hxg5 {[%emt 0:00:30]} 17. Nxg5 {[%emt 0:04:30]} Bd6 {[%emt 0:00:30]} 18. g3 {[%emt 0:06:30]} Rdg8 {[%emt 0:01:30]} 19. Rxf5 {[%emt 0:04:08]} Ne4 {[%emt 0:07:30]} 20. Qf3 {[%emt 0:04:28]} Bxg3 {[%emt 0:05:30]} 21. hxg3 {[%emt 0:01:03]} Qh6 {[%emt 0:00:00]} 22. Ra2 {[%emt 0:01:11]} Nxg5 {[%emt 0:00:00]} 23. Bxg5 {[%emt 0:03:29]} Rxg5 {[%emt 0:00:30]} 24. Rxg5 {[%emt 0:00:39]} Qxg5 {[%emt 0:00:30]} 25. Nd2 {[%emt 0:00:37]} Rf8 {[%emt 0:00:30]} 26. Qg2 {[%emt 0:02:27]} Qe3+ {[%emt 0:00:30]} 27. Kh2 {[%emt 0:00:50]} Rh8+ {[%emt 0:00:30]} 28. Qh3 {[%emt 0:00:04]} Qf2+ {[%emt 0:00:30]} 0-1

[Event "Istanbul Open 2018"]
[Site "Istanbul"]
[Date "2018.09.04"]
[Round "5"]
[White "Oney, Fatmanur"]
[Black "Sen, Irem"]
[Result "1/2-1/2"]
[ECO "D40"]
[WhiteElo "1774"]
[BlackElo "1670"]
[Annotator "NA RC"]
[PlyCount "99"]
[EventDate "2018.09.02"]
[EventType "swiss"]
[EventCountry "TUR"]
[SourceTitle "playchess.com"]
[Source "ChessBase"]
[SourceQuality "1"]
[TimeControl "5400+30"]

1. d4 {[%emt 0:00:30]} d5 {[%emt 0:00:30]} 2. Nf3 {[%emt 0:00:00]} Nf6 {[%emt 0:00:00]} 3. c4 {[%emt 0:00:00]} dxc4 {[%emt 0:00:00]} 4. e3 {[%emt 0:00:00]} a6 {[%emt 0:00:30]} 5. Bxc4 {[%emt 0:00:00]} e6 {[%emt 0:00:00]} 6. Nc3 {[%emt 0:01:30]} b5 {[%emt 0:00:00]} 7. Bd3 {[%emt 0:00:00]} Bb7 {[%emt 0:00:30]} 8. a3 {[%emt 0:00:00]} c5 {[%emt 0:01:30]} 9. O-O {[%emt 0:03:30]} Nbd7 {[%emt 0:01:30]} 10. Be2 {[%emt 0:04:30]} Be7 {[%emt 0:01:30]} 11. h3 {[%emt 0:16:30]} O-O {[%emt 0:00:30]} 12. dxc5 {[%emt 0:00:30]} Bxc5 {[%emt 0:00:30]} 13. b4 {[%emt 0:00:30]} Ba7 {[%emt 0:01:30]} 14. Bb2 {[%emt 0:01:30]} Qe7 {[%emt 0:00:30]} 15. Rc1 {[%emt 0:02:30]} Rfd8 {[%emt 0:01:30]} 16. Qc2 {[%emt 0:02:30]} Rac8 {[%emt 0:01:30]} 17. Qb1 {[%emt 0:00:30]} Nb6 {[%emt 0:07:30]} 18. Rfd1 {[%emt 0:00:30]} Nc4 {[%emt 0:13:30]} 19. Rxd8+ {[%emt 0:03:30]} Qxd8 {[%emt 0:02:30]} 20. Rd1 {[%emt 0:01:30]} Qc7 {[%emt 0:02:30]} 21. Bxc4 {[%emt 0:04:30]} Qxc4 {[%emt 0:08:30]} 22. Ne5 {[%emt 0:02:30]} Qc7 {[%emt 0:00:30]} 23. Ne2 {[%emt 0:02:30]} Be4 {[%emt 0:04:30]} 24. Qc1 {[%emt 0:01:30]} Qxc1 {[%emt 0:05:30]} 25. Rxc1 {[%emt 0:00:30]} Rxc1+ {[%emt 0:00:30]} 26. Nxc1 {[%emt 0:00:30]} Kf8 {[%emt 0:02:30]} 27. Nb3 {[%emt 0:01:30]} Bd5 {[%emt 0:14:30]} 28. Nd4 {[%emt 0:00:30]} Bb6 {[%emt 0:01:30]} 29. f3 {[%emt 0:02:30]} Bc7 {[%emt 0:00:30]} 30. Nd3 {[%emt 0:09:30]} Nd7 {[%emt 0:03:30]} 31. Kf2 {[%emt 0:02:30]} Bd6 {[%emt 0:02:30]} 32. e4 {[%emt 0:01:30]} Bc4 {[%emt 0:00:30]} 33. Ke3 {[%emt 0:00:30]} Bxd3 {[%emt 0:03:30]} 34. Kxd3 {[%emt 0:00:30]} Ne5+ {[%emt 0:00:30]} 35. Ke2 {[%emt 0:04:30]} Nc4 {[%emt 0:00:30]} 36. Bc1 {[%emt 0:00:30]} Ke7 {[%emt 0:02:35]} 37. f4 {[%emt 0:01:30]} f6 {[%emt 0:01:40]} 38. Kd3 {[%emt 0:02:30]} e5 {[%emt 0:02:48]} 39. Nf5+ {[%emt 0:00:30]} Kf7 {[%emt 0:00:17]} 40. Nxd6+ {[%emt 0:04:30]} Nxd6 {[%emt 0:00:04]} 41. fxe5 {[%emt 0:01:30]} fxe5 {[%emt 0:00:02]} 42. Bb2 {[%emt 0:03:30]} Kf6 {[%emt 0:00:21]} 43. Bc3 {[%emt 0:01:30]} Nc4 {[%emt 0:00:09]} 44. a4 {[%emt 0:00:30]} Kg5 {[%emt 0:00:19]} 45. axb5 {[%emt 0:00:54]} axb5 {[%emt 0:00:00]} 46. g3 {[%emt 0:00:31]} h5 {[%emt 0:00:29]} 47. Be1 {[%emt 0:02:53]} g6 {[%emt 0:01:22]} 48. Ke2 {[%emt 0:01:24]} h4 {[%emt 0:01:54]} 49. Kf3 {[%emt 0:01:00]} hxg3 {[%emt 0:01:39]} 50. Kxg3 {[%emt 0:00:46]} 1/2-1/2

[Event "Istanbul Open 2018"]
[Site "Istanbul"]
[Date "2018.09.04"]
[Round "5"]
[White "Acar, Cengiz Can"]
[Black "Pektas, Gokdeniz"]
[Result "1/2-1/2"]
[ECO "D02"]
[WhiteElo "1755"]
[BlackElo "1602"]
[Annotator "NA RC"]
[PlyCount "77"]
[EventDate "2018.09.02"]
[EventType "swiss"]
[EventCountry "TUR"]
[SourceTitle "playchess.com"]
[Source "ChessBase"]
[SourceQuality "1"]
[TimeControl "5400+30"]

1. d4 {[%emt 0:00:30]} Nf6 {[%emt 0:00:30]} 2. Nf3 {[%emt 0:00:30]} d5 {[%emt 0:00:00]} 3. Bf4 {[%emt 0:00:30]} g6 {[%emt 0:00:00]} 4. e3 {[%emt 0:00:30]} Nh5 {[%emt 0:00:30]} 5. Be5 {[%emt 0:00:30]} f6 {[%emt 0:00:00]} 6. Bg3 {[%emt 0:00:30]} Nxg3 {[%emt 0:00:00]} 7. hxg3 {[%emt 0:00:00]} Bg7 {[%emt 0:00:00]} 8. c4 {[%emt 0:01:00]} c6 {[%emt 0:00:00]} 9. Nc3 {[%emt 0:00:30]} O-O {[%emt 0:10:30]} 10. Qb3 {[%emt 0:05:30]} e6 {[%emt 0:00:30]} 11. O-O-O {[%emt 0:08:30]} Nd7 {[%emt 0:06:30]} 12. Bd3 {[%emt 0:04:30]} Nb6 {[%emt 0:00:30]} 13. cxd5 {[%emt 0:10:30]} cxd5 {[%emt 0:01:30]} 14. Rh2 {[%emt 0:06:30]} f5 {[%emt 0:01:30]} 15. Rdh1 {[%emt 0:00:30]} h6 {[%emt 0:13:30]} 16. Ne5 {[%emt 0:03:30]} Rf6 {[%emt 0:02:30]} 17. g4 {[%emt 0:01:30]} Nd7 {[%emt 0:00:00]} 18. gxf5 {[%emt 0:03:30]} gxf5 {[%emt 0:01:00]} 19. g4 {[%emt 0:00:00]} Nxe5 {[%emt 0:11:30]} 20. dxe5 {[%emt 0:01:00]} Rf7 {[%emt 0:00:30]} 21. gxf5 {[%emt 0:01:30]} exf5 {[%emt 0:00:30]} 22. Qxd5 {[%emt 0:17:30]} Qxd5 {[%emt 0:00:30]} 23. Nxd5 {[%emt 0:00:30]} Be6 {[%emt 0:00:00]} 24. Nf6+ {[%emt 0:00:30]} Bxf6 {[%emt 0:02:00]} 25. exf6 {[%emt 0:00:30]} Rxf6 {[%emt 0:00:30]} 26. Rxh6 {[%emt 0:00:00]} Raf8 {[%emt 0:00:30]} 27. Rg1+ {[%emt 0:04:00]} Kf7 {[%emt 0:00:30]} 28. Rh7+ {[%emt 0:00:30]} Ke8 {[%emt 0:00:30]} 29. Rxb7 {[%emt 0:01:30]} Bxa2 {[%emt 0:00:00]} 30. Bb5+ {[%emt 0:02:30]} Kd8 {[%emt 0:00:00]} 31. Rd1+ {[%emt 0:01:30]} Kc8 {[%emt 0:00:30]} 32. Rxa7 {[%emt 0:01:30]} Be6 {[%emt 0:01:30]} 33. Rd6 {[%emt 0:02:30]} Bb3 {[%emt 0:01:30]} 34. Rdd7 {[%emt 0:01:30]} Rb6 {[%emt 0:00:30]} 35. Ba6+ {[%emt 0:01:30]} Rxa6 {[%emt 0:00:30]} 36. Rac7+ {[%emt 0:00:30]} Kb8 {[%emt 0:00:30]} 37. Rb7+ {[%emt 0:00:30]} Kc8 {[%emt 0:00:30]} 38. Rbc7+ {[%emt 0:01:25]} Kb8 {[%emt 0:00:00]} 39. Rb7+ {[%emt 0:00:04]} 1/2-1/2